Cogmind - Beta 13 @@@ ROGUE MODE // 2024.05.09 @ 21:45:10 Player: Some Pennies Result: Self-destructed Performance ------------- Evolutions (2) 1000 Regions Visited (7) 1400 Robots Destroyed (87) 435 Value Destroyed (1559) 1559 Prototype IDs (10) 200 Alien Tech Used (0) 0 Bonus (44) 44 TOTAL SCORE: 4638 Bonus ------- Follower Combat Kills 61 Friendly Fire -17 Cogmind --------- Core Integrity 520/550 Matter 277/300 Energy 100/100 System Corruption 6% Temperature Cool (0) Movement Treading (250) Ox1 Location -8/Materials Parts ------- > --- POWER (1) -------- (None) > --- PROPULSION (4) --- Armored Treads Armored Treads Armored Treads Armored Treads > --- UTILITY (4) ------ Huge Storage Unit Hacking Suite > --- WEAPON (2) ------- Improved Assault Rifle Improved Assault Rifle > --- INVENTORY (25) --- Nuclear Core Light Angular Momentum Engine Light Treads Light Treads Improved Treads Improved Heat Sink Improved Heat Sink Advanced Weight Redist. System Experimental Sensor Array Improved Terrain Scanner Improved Trap Extractor (0/6) Improved EM Shotgun Improved EM Shotgun Advanced Beam Cannon Ion Cannon Improved Assault Rifle Rocket Launcher Improved Grenade Launcher Improved Grenade Launcher Datajack Mining Laser Plasma Cutter Peak State ------------ > --- POWER ------------ Nuclear Core > --- PROPULSION ------- Armored Treads Armored Treads Armored Treads Armored Treads > --- UTILITY ---------- Huge Storage Unit Advanced Targeting Computer Hacking Suite Hacking Suite > --- WEAPON ----------- Improved Assault Rifle Improved Assault Rifle > --- INVENTORY -------- Nuclear Core Light Angular Momentum Engine Light Treads Light Treads Improved Treads Improved Heat Sink Improved Heat Sink Advanced Weight Redist. System Experimental Sensor Array Improved Terrain Scanner Improved Trap Extractor Improved EM Shotgun Improved EM Shotgun Advanced Beam Cannon Ion Cannon Improved Assault Rifle Rocket Launcher Improved Grenade Launcher Improved Grenade Launcher Datajack Mining Laser Plasma Cutter [Rating: 37] Favorites ----------- Power Nuclear Core Engine Ion Engine Power Core Nuclear Core Propulsion Armored Treads Treads Armored Treads Utility Hacking Suite Device Improved Heat Sink Storage Huge Storage Unit Processor Advanced Targeting Computer Hackware Hacking Suite Protection Medium Armor Plating Weapon Improved EM Shotgun Energy Gun Improved EM Shotgun Energy Cannon Beam Cannon Ballistic Gun Improved Assault Rifle Launcher Improved Grenade Launcher Special Weapon Mining Laser Special Melee Weapon Datajack Build | -11 -10 -10 -9 -9 -9 -8 -8 ------- Run | Yrd Mat Min Mat Min Exi Min Mat Slots Evolved 4 | . . . 2 . . . 2 Power . | . . . . . . . . Propulsion 2 | . . . . . . . 2 Utility 2 | . . . 2 . . . . Weapon . | . . . . . . . . Parts Attached 65 | 7 9 . 34 4 1 6 4 Power 6 | 1 1 . 4 . . . . Engine 3 | 1 1 . 1 . . . . Core 3 | . . . 3 . . . . Reactor . | . . . . . . . . Propulsion 9 | 2 1 . 4 . . . 2 Treads 9 | 2 1 . 4 . . . 2 Leg . | . . . . . . . . Wheel . | . . . . . . . . Hover . | . . . . . . . . Flight . | . . . . . . . . Utility 20 | 2 5 . 10 2 1 . . Device 8 | 1 3 . 3 1 . . . Storage 4 | 1 2 . 1 . . . . Processor 1 | . . . 1 . . . . Hackware 2 | . . . 1 . 1 . . Protection 5 | . . . 4 1 . . . Artifact . | . . . . . . . . Weapon 30 | 2 2 . 16 2 . 6 2 Energy Gun 7 | 1 . . 2 1 . 2 1 Energy Cannon 8 | . 2 . 6 . . . . Ballistic Gun 10 | . . . 4 1 . 4 1 Ballistic Cannon . | . . . . . . . . Launcher 1 | . . . 1 . . . . Special Weapon 2 | 1 . . 1 . . . . Impact Weapon . | . . . . . . . . Slashing Weapon . | . . . . . . . . Piercing Weapon . | . . . . . . . . Special Melee Weapon 2 | . . . 2 . . . . Unidentified Prototypes 3 | . . . 2 1 . . . Parts Lost 10 | . 3 . 3 1 . . 3 Power 2 | . 1 . . . . . 1 Propulsion 1 | . 1 . . . . . . Utility 5 | . . . 2 1 . . 2 Weapon 2 | . 1 . 1 . . . . Highest Loss Streak 3 | . 1 . 2 1 . . 3 To Critical Strikes . | . . . . . . . . Average Slot Usage (%) 96 | . 93 85 98 98 91 100 97 Engine 3 | . 13 14 . . . . . Core 8 | . . . 10 11 11 11 7 Treads 21 | . 22 14 21 22 22 22 36 Device 7 | . 14 14 10 . . . . Storage 11 | . 14 14 11 11 11 11 9 Processor 5 | . . . 3 11 11 11 8 Hackware 9 | . . . 8 11 14 22 18 Protection 5 | . . . 10 9 . . . Energy Gun 7 | . 1 . 4 17 22 13 . Energy Cannon 9 | . 24 28 8 . . . . Ballistic Gun 5 | . . . 8 4 . 8 17 Naked Turns . | . . . . . . . . Heaviest Build 101 | 12 52 52 101 100 93 93 93 Greatest Support 80 | 40 40 20 40 40 40 40 80 Greatest Overweight (x) 2 | . 2 2 2 2 2 2 1 Average Overweight (x) 1 | . 1 2 1 2 2 2 1 Largest Inventory Capacity 25 | 8 20 20 25 25 25 25 25 Average Capacity 21 | 7 17 20 21 25 25 25 25 Most Carried 24 | 4 18 19 21 23 23 24 23 Average Carried 19 | 1 13 17 19 21 22 23 21 Final Capacity 25 | 8 20 20 25 25 25 25 25 Final Carried 24 | 2 17 19 21 23 22 24 22 Class Distribution -------------------- 79% | Mutant 19% | Hacker-Mutant Dominant Class ---------------- Mutant | -10/Materials Mutant | -10/Mines Mutant | -9/Materials Mutant | -9/Mines Mutant | -9/Exiles Hacker-Mutant | -8/Mines Hacker-Mutant | -8/Materials Resources | -11 -10 -10 -9 -9 -9 -8 -8 ----------- Run | Yrd Mat Min Mat Min Exi Min Mat Matter Collected 1030 | 201 144 . 465 58 . 118 44 Remotely . | . . . . . . . . Salvage Created 3031 | 35 557 . 1605 353 . 404 77 Parts 185 | 5 35 . 98 24 . 17 6 Haulers Intercepted 7 | . 1 . 6 . . . . Recyclers Shooed 4 | . . . 2 . . 2 . Parts Field Recycled . | . . . . . . . . Retrieved Matter . | . . . . . . . . Parts Self-Destructed . | . . . . . . . . Prevented . | . . . . . . . . Kills | -11 -10 -10 -9 -9 -9 -8 -8 ------- Run | Yrd Mat Min Mat Min Exi Min Mat Combat Hostiles Destroyed 48 | . 9 . 21 9 . 6 3 Guns 25 | . 2 . 7 8 . 6 2 Cannons 18 | . 7 . 11 . . . . AOE 4 | . . . 2 1 . . 1 Classes Destroyed 11 | 1 6 . 3 1 . . . Worker 7 | . . . 4 1 . 1 1 Tunneler 3 | 2 . . 1 . . . . Hauler 7 | . 1 . 6 . . . . Recycler 9 | . 2 . 4 1 . 2 . Mechanic 1 | . . . 1 . . . . Operator 4 | . 1 . 3 . . . . Watcher 8 | . 3 . 5 . . . . Swarmer 23 | . 5 . 6 6 . 3 3 Grunt 16 | . 4 . 7 2 . 3 . Brawler 1 | . . . . 1 . . . Sentry 8 | . . . 8 . . . . Best Kill Streak 6 | 1 3 . 6 6 . 4 3 Combat Bots Only 6 | . 3 . 5 6 . 3 3 Max Kills in Single Turn 3 | 1 1 . 3 2 . 1 2 Gunslinging 1 | . . . . 1 . . . Exploded 2 | . . . 2 1 . . 1 Melee . | . . . . . . . . Uniques/NPCs Destroyed . | . . . . . . . . Combat | -11 -10 -10 -9 -9 -9 -8 -8 -------- Run | Yrd Mat Min Mat Min Exi Min Mat Hostile Shots Fired 238 | . 55 . 108 18 . 23 34 Missed 55 | . 15 . 21 3 . 6 10 Damage Taken 2394 | . 533 11 1093 183 . 178 396 Core 283 | . 63 . 111 29 . 50 30 Absorbed by Shields . | . . . . . . . . Regen/Repaired (Parts) 355 | . 87 . 268 . . . . Core Remaining (%) 75 | 100 . 74 . . . 52 . Volleys Fired 196 | 6 55 . 94 12 . 20 9 Largest 2 | 2 2 . 2 2 . 2 2 Hottest 150 | 150 150 . 136 90 . 90 68 Shots Fired 370 | 8 96 . 184 24 . 40 18 Gun 177 | 6 28 . 61 24 . 40 18 Cannon 182 | . 62 . 120 . . . . Launcher . | . . . . . . . . Special 11 | 2 6 . 3 . . . . Kinetic 82 | . . . 46 6 . 16 14 Thermal 227 | 8 96 . 123 . . . . Explosive . | . . . . . . . . Electromagnetic 61 | . . . 15 18 . 24 4 Robot Hit Streak 19 | 4 16 . 19 11 . 11 12 Robot Miss Streak 6 | 2 6 . 4 2 . 2 1 Penetration Max . | . . . . . . . . Secondary Targets 6 | . . . . 5 . 1 . Max Gunslinging Chain 1 | . . . . 1 . 1 . Shots Hit Robots 257 | 5 61 . 122 21 . 32 16 Core Hits 108 | 2 22 . 49 13 . 17 5 Critical Kills 1 | . . . 1 . . . . Critical Parts Destroyed . | . . . . . . . . Critical Strikes 3 | 2 . . 1 . . . . Burn 2 | 2 . . . . . . . Meltdown 1 | . . . 1 . . . . Melee Attacks 3 | . . . 3 . . . . Impact . | . . . . . . . . Slashing . | . . . . . . . . Piercing . | . . . . . . . . Sneak Attacks 3 | . . . 3 . . . . Combat Hostiles . | . . . . . . . . Follow-up Attacks . | . . . . . . . . Damage Inflicted 4630 | 62 1038 . 2310 381 . 560 279 Guns 2093 | 62 234 . 653 318 . 560 266 Cannons 2365 | . 708 . 1657 . . . . Explosions 76 | . . . . 63 . . 13 Melee . | . . . . . . . . Ramming . | . . . . . . . . Kinetic 971 | . . . 477 86 . 204 204 Thermal 2833 | 62 1038 . 1657 63 . . 13 Explosive . | . . . . . . . . Electromagnetic 826 | . . . 176 232 . 356 62 Impact . | . . . . . . . . Slashing . | . . . . . . . . Piercing . | . . . . . . . . Highest Corruption 4 | . . . . . . . 4 Average Corruption 4 | . . . . . . . 4 Corruption Purged . | . . . . . . . . Corruption Blocked . | . . . . . . . . Overload Shots . | . . . . . . . . Overflow Damage 96 | . 50 . 46 . . . . Projectiles 96 | . 50 . 46 . . . . Explosions . | . . . . . . . . Melee . | . . . . . . . . Knockbacks . | . . . . . . . . Impact . | . . . . . . . . Kinetic . | . . . . . . . . Secondary . | . . . . . . . . Self-Inflicted Damage 69 | . . . . 55 . . 14 Shots 3 | . . . . 2 . . 1 Rammed . | . . . . . . . . Targets Rammed . | . . . . . . . . Kicked . | . . . . . . . . Crushed . | . . . . . . . . Highest Temperature 391 | 50 391 . 300 126 . 158 10 Average Temperature 81 | 20 120 . 64 49 . 67 5 Received Heat Transfer 663 | . 192 . 282 18 . 45 126 Effects 2 | . 2 . . . . . . Shutdowns 2 | . 2 . . . . . . Siege Activations . | . . . . . . . . Robots Corrupted . | . . . . . . . . Combat Hostiles . | . . . . . . . . Parts Fried 3 | . . . . . . 3 . Impact Corruptions . | . . . . . . . . Robots Melted 1 | . . . 1 . . . . Combat Hostiles 1 | . . . 1 . . . . Parts Melted 8 | 1 2 . 5 . . . . Heat Transferred 5974 | 333 2383 . 3108 100 . . 50 Parts Sabotaged . | . . . . . . . . Parts Stolen . | . . . . . . . . Parts Stripped . | . . . . . . . . Power Chain Reactions 3 | . . . . 2 . . 1 Alert | -11 -10 -10 -9 -9 -9 -8 -8 ------- Run | Yrd Mat Min Mat Min Exi Min Mat Peak Influence 336 | 10 140 . 336 179 . 170 88 Initial 39 | . 6 . . 39 . . . Average 68 | 4 41 . 118 46 . 16 63 Maximum Alert Level 1 | . . . 1 . . . . Low Security (%) 94 | 100 100 100 86 100 . 100 100 Level 1 5 | . . . 13 . . . . Level 2 . | . . . . . . . . Level 3 . | . . . . . . . . Level 4 . | . . . . . . . . Level 5 . | . . . . . . . . High Security . | . . . . . . . . Max Security . | . . . . . . . . Squads Dispatched 5 | . 1 . 4 . . . . Investigation 1 | . . . 1 . . . . Extermination . | . . . . . . . . Reinforcement 4 | . 1 . 3 . . . . Assault . | . . . . . . . . Garrison . | . . . . . . . . Intercept . | . . . . . . . . Searches Triggered . | . . . . . . . . Construction Impeded . | . . . . . . . . Haulers Reinforced . | . . . . . . . . Active Scanning Responses . | . . . . . . . . Cargo Convoy Interrupts . | . . . . . . . . Stealth | -11 -10 -10 -9 -9 -9 -8 -8 --------- Run | Yrd Mat Min Mat Min Exi Min Mat Distress Signals 2 | . 1 . 1 . . . . Communications Jammed . | . . . . . . . . Distress Signals . | . . . . . . . . Times Spotted 86 | . 18 . 46 9 . 7 6 Peak Tracking Total 7 | . 3 . 7 4 . 3 3 Tactical Retreats 2 | . . . 1 . . 1 . Traps | -11 -10 -10 -9 -9 -9 -8 -8 ------- Run | Yrd Mat Min Mat Min Exi Min Mat Traps Triggered 1 | . 1 . . . . . . Indirectly . | . . . . . . . . Trap Hack Attempts 2 | . . . 2 . . . . Triggered 1 | . . . 1 . . . . Disarmed . | . . . . . . . . Reprogrammed . | . . . . . . . . Reused . | . . . . . . . . Traps Extracted . | . . . . . . . . Installed . | . . . . . . . . Triggered . | . . . . . . . . Machines | -11 -10 -10 -9 -9 -9 -8 -8 ---------- Run | Yrd Mat Min Mat Min Exi Min Mat Machines Disabled 2 | . 1 . . . . . 1 Max in Single Turn 1 | . 1 . . . . . 1 Machines Repaired . | . . . . . . . . Machines Dismantled . | . . . . . . . . Machines Sabotaged . | . . . . . . . . Overloaded Fab Kills . | . . . . . . . . Hacking | -11 -10 -10 -9 -9 -9 -8 -8 --------- Run | Yrd Mat Min Mat Min Exi Min Mat Machines Accessed 23 | . 9 1 13 . . . . Terminals 14 | . 6 . 8 . . . . Fabricators . | . . . . . . . . Repair Stations 3 | . 1 . 2 . . . . Recycling Units 4 | . 2 . 2 . . . . Scanalyzers 1 | . . . 1 . . . . Garrison Access . | . . . . . . . . Total Hacks 64 | . 24 1 39 . . . . Successful 36 | . 13 1 22 . . . . Failed 26 | . 10 . 16 . . . . Catastrophic 4 | . 1 . 3 . . . . Database Lockouts 2 | . 1 . 1 . . . . Manual 29 | . 15 . 14 . . . . Terminals 44 | . 18 . 26 . . . . Fabricators . | . . . . . . . . Repair Stations 10 | . 2 . 8 . . . . Recycling Units 7 | . 4 . 3 . . . . Scanalyzers 2 | . . . 2 . . . . Garrison Access . | . . . . . . . . Terminal Hacks 19 | . 8 1 10 . . . . Robot Analysis 3 | . 2 . 1 . . . . Prototype ID Bank 3 | . 1 . 2 . . . . Open Door 1 | . . 1 . . . . . Terminal Index 1 | . 1 . . . . . . Unreport Threat 1 | . . . 1 . . . . Locate Traps 5 | . 2 . 3 . . . . Recall Reinforcements 1 | . . . 1 . . . . Zone Layout 4 | . 2 . 2 . . . . Fabricator Hacks . | . . . . . . . . Repair Station Hacks 10 | . 2 . 8 . . . . Scan Component 5 | . 1 . 4 . . . . Repair 5 | . 1 . 4 . . . . Recycling Unit Hacks . | . . . . . . . . Scanalyzer 2 | . . . 2 . . . . Insert Component 1 | . . . 1 . . . . Analyze 1 | . . . 1 . . . . Garrison Access Hacks . | . . . . . . . . Unauthorized Hacks 5 | . 3 . 2 . . . . Terminals . | . . . . . . . . Fabricators . | . . . . . . . . Repair Stations . | . . . . . . . . Recycling Units 5 | . 3 . 2 . . . . Monitor 1 | . 1 . . . . . . Mask 4 | . 2 . 2 . . . . Scanalyzers . | . . . . . . . . Garrison Access . | . . . . . . . . Data Cores Recovered . | . . . . . . . . Used . | . . . . . . . . Hacking Detections 19 | . 7 . 12 . . . . Full Trace Events . | . . . . . . . . Feedback Events . | . . . . . . . . Feedback Blocked . | . . . . . . . . Robot Schematics Acquired . | . . . . . . . . Robots Built . | . . . . . . . . Authchips . | . . . . . . . . Time . | . . . . . . . . Total Robot Build Rating . | . . . . . . . . Part Schematics Acquired 1 | . . . 1 . . . . Parts Built . | . . . . . . . . Authchips . | . . . . . . . . Time . | . . . . . . . . Total Part Build Rating . | . . . . . . . . Parts Repaired 5 | . 1 . 4 . . . . Time 179 | . 26 . 153 . . . . Parts Recycled . | . . . . . . . . Recycled Matter . | . . . . . . . . Retrieved Matter . | . . . . . . . . Retrieved Components . | . . . . . . . . Parts Scanalyzed 1 | . . . 1 . . . . Part Schematics Acquired 1 | . . . 1 . . . . Parts Damaged . | . . . . . . . . Bothacking | -11 -10 -10 -9 -9 -9 -8 -8 ------------ Run | Yrd Mat Min Mat Min Exi Min Mat Used RIF Installer . | . . . . . . . . Robots Hacked 1 | . . . 1 . . . . Non-combat 1 | . . . 1 . . . . Combat . | . . . . . . . . Robot Hacks Applied 3 | . . . 3 . . . . no_distress 1 | . . . 1 . . . . find_recycling 2 | . . . 2 . . . . Relay Couplers Released . | . . . . . . . . Fabnet Peak Effective % . | . . . . . . . . Robots Rewired . | . . . . . . . . Allies Hacked . | . . . . . . . . Hacks Repelled . | . . . . . . . . Allies | -11 -10 -10 -9 -9 -9 -8 -8 -------- Run | Yrd Mat Min Mat Min Exi Min Mat Total Allies 4 | . . 3 . 1 . . . Largest Group 3 | . . 3 3 1 1 . . Highest-Rated Group 40 | . . 40 40 31 31 . . Highest-Rated Ally 31 | . . 16 16 31 31 . . Total Orders . | . . . . . . . . Ally Attacks 26 | . . . 26 . . . . Total Damage 295 | . . . 295 . . . . Kills 6 | . . . 6 . . . . Allies Corrupted . | . . . . . . . . Allies Melted . | . . . . . . . . Intel | -11 -10 -10 -9 -9 -9 -8 -8 ------- Run | Yrd Mat Min Mat Min Exi Min Mat Robot Analysis Total 3 | . 2 . 1 . . . . Derelict Logs Recovered 5 | . . 3 . 2 . . . Drone Launches . | . . . . . . . . Drone Recoveries . | . . . . . . . . Exploration | -11 -10 -10 -9 -9 -9 -8 -8 ------------- Run | Yrd Mat Min Mat Min Exi Min Mat Turns Passed 10093 | 94 1848 418 4001 1366 612 1653 101 Spaces Moved 3182 | 46 666 131 1245 401 186 480 27 Core 11 | 11 . . . . . . . Treads 3171 | 35 666 131 1245 401 186 480 27 Legs . | . . . . . . . . Wheels . | . . . . . . . . Hover . | . . . . . . . . Flight . | . . . . . . . . Fastest Speed 50 | 50 160 320 245 330 330 330 250 Average Speed 286 | 133 243 320 274 330 330 330 250 Slowest Speed 330 | 160 320 320 330 330 330 330 250 Overloaded Moves . | . . . . . . . . Propulsion Burnouts . | . . . . . . . . Robots Hopped . | . . . . . . . . Cave-ins Triggered . | . . . . . . . . Exploration Rate (%) 61 | 3 99 50 98 82 59 100 3 Regions Visited 7 Branch Regions 4 Pre-discovered Areas 2 | . . 1 . 1 . . . Known Exits Taken 2 | . . . 1 . . 1 . Unknown Exits Taken 5 | 1 1 1 . 1 1 . . Scrap Searched 3 | . . 1 . 1 . 1 . Spaces Dug 2 | . . . 2 . . . . Terrain Destroyed 22 | 1 2 . 2 14 . . 3 Melee . | . . . . . . . . Projectile 5 | 1 2 . 2 . . . . AOE 17 | . . . . 14 . . 3 Terrain Rammed . | . . . . . . . . Walls Destroyed . | . . . . . . . . Machines Disabled . | . . . . . . . . Actions | -11 -10 -10 -9 -9 -9 -8 -8 --------- Run | Yrd Mat Min Mat Min Exi Min Mat Total 3783 | 67 786 132 1642 420 186 508 42 Wait 232 | . 30 . 199 2 . 1 . Move 3175 | 45 665 130 1244 400 185 479 27 Hop . | . . . . . . . . Pick Up 71 | 9 22 2 33 2 . 2 1 Fast Attach 8 | . . . 8 . . . . Attach 21 | 7 4 . 7 . 1 . 2 Detach 1 | . . . 1 . . . . Swap 36 | . 5 . 19 4 . 6 2 Drop 38 | . 5 . 32 . . . 1 Fire 196 | 6 55 . 94 12 . 20 9 Melee 3 | . . . 3 . . . . Ram . | . . . . . . . . Kick . | . . . . . . . . Crush . | . . . . . . . . Escape Stasis . | . . . . . . . . Rewire . | . . . . . . . . Trap 2 | . . . 2 . . . . Miscellaneous . | . . . . . . . . Route ------- -11/Scrapyard -10/Materials (discovered 6 exits: *Mat x3 / *Min x2 / [Sub]) -10/Mines -9/Materials (discovered 4 exits: *Mat x3 / *Min) -9/Mines (discovered 3 exits: *Mat x2 / [*Exi]) -9/Exiles -8/Mines (discovered 2 exits: *Mat x2) -8/Materials History --------- Turn | Location | Event 6 | -11/Scrapyard | Discovered new exit (range 16) 95 | -11/Scrapyard | Entered Materials 293 | -10/Materials | Discovered new exit (range 9) 351 | -10/Materials | Build established: Mutant 785 | -10/Materials | Discovered new exit (range 7) 901 | -10/Materials | Discovered new exit (range 9) 1023 | -10/Materials | Central database locked down 1193 | -10/Materials | Repaired Lgt. Treads 1216 | -10/Materials | Discovered new exit (range 9) 1250 | -10/Materials | Discovered new exit (range 11) 1576 | -10/Materials | Discovered new exit (range 16) 1943 | -10/Materials | Entered Mines 1995 | -10/Mines | Learned Materials terminal intel 2087 | -10/Mines | Assisted by bots powering up and referring to "LRC-V3" 2178 | -10/Mines | Met a Derelict who couldn't figure out how to use a Trap Extractor 2221 | -10/Mines | Learned 2 Materials zone layouts 2230 | -10/Mines | Learned location of Storage (-7) 2323 | -10/Mines | Discovered new exit (range 8) 2361 | -10/Mines | Entered Materials 2361 | -9/Materials | Accompanied by 3 allies 2361 | -9/Materials | Evolved 2 slots: Utility x2 2362 | -9/Materials | Identified exit to Mines 2362 | -9/Materials | Identified exit to Materials 2363 | -9/Materials | Loaded intel: 12 terminal locations 2688 | -9/Materials | Lost 3 allies 3603 | -9/Materials | Repaired Arm. Treads 3655 | -9/Materials | Repaired Adv. Beam Cannon 3695 | -9/Materials | Repaired Arm. Treads 4143 | -9/Materials | Central database locked down 4395 | -9/Materials | Repaired Lgt. Armor Plating 4404 | -9/Materials | Discovered exit to Materials (range 5) 5514 | -9/Materials | Discovered exit to Materials (range 11) 6362 | -9/Materials | Entered Mines 6446 | -9/Mines | Discovered exit to Materials (range 8) 6679 | -9/Mines | Learned Materials garrison access intel 6742 | -9/Mines | Found a damaged Exp. Sensor Array with a note attached 6748 | -9/Mines | Found Prototype Device 6756 | -9/Mines | Identified Exp. Sensor Array 6805 | -9/Mines | Learned location of Zion (-6) 7012 | -9/Mines | Deemed a non-threat by the Exiles lab entrance 7012 | -9/Mines | Discovered new exit (range 5) 7081 | -9/Mines | Discovered exit to Materials (range 11) 7082 | -9/Mines | Escorted by a lone wolf Derelict 7329 | -9/Mines | Received a Rocket Launcher from a helpful Derelict 7728 | -9/Mines | Entered Exiles 7728 | -9/Exiles | Accompanied by 1 ally 7821 | -9/Exiles | Met 8R-AWN 7874 | -9/Exiles | Met EX-HEX 7969 | -9/Exiles | Met EX-BIN 8191 | -9/Exiles | Met EX-DEC 8310 | -9/Exiles | Discovered new exit (range 10) 8340 | -9/Exiles | Entered Mines 8446 | -8/Mines | Build established: Hacker-Mutant 9630 | -8/Mines | Discovered exit to Materials (range 12) 9703 | -8/Mines | Discovered exit to Materials (range 6) 9993 | -8/Mines | Entered Materials 9993 | -8/Materials | Evolved 2 slots: Propulsion x2 9994 | -8/Materials | Loaded intel: 1 garrison access location 10094 | -8/Materials | Self-destructed Last Messages --------------- 10036_ Acquired Imp. Heat Sink. 10037_ K-01 Serf collects debris. 10041_ R-06 Scavenger collects Lgt. Ion Engine. 10042_ K-01 Serf collects debris. 10042_ Acquired 30 matter. 10044_ R-06 Scavenger collects Flight Unit. 10046_ K-01 Serf collects debris. 10049_ R-06 Scavenger collects Imp. Heat Sink. 10052_ K-01 Serf collects debris. 10075_ C-30 ARC bursts open, deploying its payload. 10075_ B-36 Bruiser unfolds itself. 10075_ G-47 Trooper unfolds itself. 10076_ Nuclear Core destroyed. 10077_ K-01 Serf destroyed. 10082_ R-06 Scavenger collects Sml. Matter Pod. 10083_ Adv. Targeting Computer destroyed. 10083_ System corrupted by crushing effect (+4). 10094_ Hacking Suite destroyed. 10094_ System corrupted by crushing effect (+2). Map ----- +----------------------------------------------------+ | ????????????????????????????????????????? | | ????????????????????????????????????????? | | ????????????????????????????????????????? | | ????????????????????????????????????????? | | ????????????????????????????????????????? | | ????????????????????????????????????????? | | ????????????????????????????????????????? | | ????????????????????????????????????????? | | ????????????????????????????????????????? | | ????????????????????????????????????????? | | ????????????????????????????????????????? | | ????????????????????????????????????????? | | ????????????????????????????????????????? | | ????????????????????????????????????????? | | ????????????????????????????????????????? | | ????????????????????????????????????????? | | ????????????????????????????????????????? | | ????????????????????????????????????????? | | ????????????????????????????????????????? | | ????????????????????????????????????????? | | ????????????????#####???????????????????? | | ???????????????##;;;##??????????????????? | | ????????######## #??????????????????? | | ????????# ##### ###??????????? | | ????????# r ??????? | | ????????# @% #########??????????? | | ????????####+### b #??????????????????? | | ????????# ## ##??????????????????? | | ????????# ## #???????????????????? | | ????????# ## #???????????????????? | | ????????# ## gg#???????????????????? | | ????????# ]] ## r#???????????????????? | | ????????# ] ## #???????????????????? | | ????????######### #???????????????????? | | ????????????????# #???????????????????? | | ????????????????# #???????????????????? | | ????????????????# r#???????????????????? | | ????????????????# a#???????????????????? | | ????????????????# #???????????????????? | | ????????????????# #???????????????????? | | ????????????????# ????????????????????? | | ????????????????? ????????????????????? | | ????????????????????????????????????????? | | ????????????????????????????????????????? | | ????????????????????????????????????????? | | ????????????????????????????????????????? | | ????????????????????????????????????????? | | ????????????????????????????????????????? | | ????????????????????????????????????????? | | ????????????????????????????????????????? | +----------------------------------------------------+ Best States ------------- Heat Dissipation 42 Energy Generation 14 Energy Capacity 265 Matter Stores 300 Matter Capacity 300 Sight Range 16 Terrain Scan Density 10 Armor Coverage 225 Evasion (%) 50 Targeting Accuracy 8 Recoil Reduction 4 Offensive Hacking 20 Item Schematics ----------------- Imp. EM Shotgun | -9/Materials | Scanalyzed Robot Schematics ------------------ None Fabricated ------------ Nothing Alien Tech Used ----------------- None Achievements -------------- None Challenges ------------ None Game ------ Seed SubatomicGyrokineticStick Manual? 0 Play Time 00:50:25 Cumulative 43.1 hours Start 2024.05.08 @ 23:02:08 End 2024.05.09 @ 21:45:10 Sessions 3 Manual Loads 0 Difficulty Rogue Special Mode None Game No. 52 Rogue 47 Adventurer 5 Explorer 0 Win Type - Total 0 Types 0/0/0/0/0/0/0/0/0 Lore% 27 Gallery% 30 Achievement% 25 Wizard Run 0 Options --------- Layout 2 ASCII 0 Keyboard 0 Movement Mouse Keybinds 0 Fullscreen 2 Font 24/Smallcaps Map View 50x44 Zoom Use 0% Tactical HUD 1 Map Filters NONE Filters NONE Steam 1 RUN: 737c446c-bd0e-4d72-a9f9-434270684fd2